bitfinex/quotes_SOLUSD_20240727
["timestamp","ask_amount","ask_price","bid_price","bid_amount"]
[1722038673238,8.57273921,183.06,183.03,12.92]
[1722038674737,8.57273921,183.06,183.02,12.92]
[1722038674940,8.57273921,183.06,183.03,12.92]
[1722038675241,22.016,183.08,183.05,12.92]
[1722038675423,22.016,183.08,183.06,12.92]
[1722038675619,30.58751049,183.08,183.06,12.92]
[1722038677720,24.14911049,183.08,183.06,12.92]
[1722038678234,24.14911049,183.08,182.97,52.77268876]
[1722038678419,24.14911049,183.08,183.05,12.92]
[1722038678615,24.14911049,183.08,183.04,12.92]
[1722038679711,24.14911049,183.08,183.05,12.92]
[1722038681625,24.14911049,183.08,183.04,12.92]
[1722038683555,24.14911049,183.08,183.05,12.92]
[1722038684651,24.14911049,183.08,182.96,1.09261215]
[1722038684827,45.5,183.07,183.02,12.92]
[1722038686047,45.0,183.07,183.02,12.92]
[1722038686226,24.14911049,183.08,183.02,12.92]
[1722038686630,24.14911049,183.08,183.03,12.92]
[1722038686843,24.14911049,183.08,183.04,12.92]
[1722038687531,0.5,183.07,183.04,12.92]
[1722038688029,24.64911049,183.08,183.04,12.92]
[1722038688244,24.64911049,183.08,183.03,12.92]
[1722038688425,0.5,183.07,183.03,12.92]
[1722038688629,0.5,183.07,183.02,12.92]
[1722038689133,65.5,183.07,183.0,12.92]
[1722038689747,78.42,183.07,182.99,12.92]
[1722038690047,83.8824,183.07,182.99,12.92]
[1722038692138,78.42,183.07,182.99,12.92]
[1722038693054,12.92,183.06,182.99,12.92]
[1722038693231,65.5,183.05,182.99,12.92]
[1722038693433,0.5,183.04,182.99,12.92]
[1722038694037,65.0,183.05,182.91,2.20757774]
[1722038694038,23.1336,183.03,182.91,2.20757774]
[1722038694239,65.0,183.02,182.96,12.92]
[1722038694444,0.5,183.01,182.96,12.92]
[1722038696036,0.5,183.01,182.95,12.92]
[1722038698651,0.5,183.01,182.87,17.44358027]
[1722038698842,0.5,183.01,182.95,12.92]
[1722038701661,13.42,183.01,182.94,12.92]
[1722038701859,65.0,183.0,182.94,12.92]
[1722038702067,0.5,182.99,182.94,12.92]
[1722038702271,0.5,182.99,182.87,15.2636]
[1722038702574,0.5,182.99,182.95,12.92]
[1722038703852,0.5,182.98,182.86,266.8655]
[1722038704042,13.42,182.98,182.91,12.92]
[1722038704244,65.0,182.97,182.91,12.92]
[1722038704437,0.5,182.96,182.91,12.92]
[1722038706163,65.5,182.97,182.92,12.92]
[1722038706580,65.5,182.97,182.93,12.92]
[1722038707178,65.0,182.97,182.93,12.92]
[1722038708971,20.0,182.97,182.94,12.92]
[1722038709281,0.5,182.99,182.94,12.92]
[1722038710676,45.5,182.99,182.94,12.92]
[1722038710879,20.0,182.98,182.94,12.92]
[1722038711875,60.4462,182.97,182.83,1.09347093]
[1722038712087,20.0,182.96,182.91,12.92]
[1722038712258,45.0,182.95,182.91,12.92]
[1722038712460,20.0,182.96,182.83,1.09347928]
[1722038712461,20.0,182.96,182.92,12.92]
[1722038715783,15.9462,182.97,182.92,12.92]
[1722038716180,20.0,182.96,182.92,12.92]
[1722038716591,15.4462,182.97,182.95,12.92]
[1722038716893,22.0957,183.01,182.95,12.92]
[1722038717105,45.0,183.0,182.95,12.92]
[1722038717411,20.0,182.99,182.94,12.92]
[1722038717716,45.0,182.98,182.94,12.92]
[1722038718106,45.0,182.99,182.94,12.92]
[1722038718279,45.0,183.0,182.94,12.92]
[1722038719178,20.0,182.99,182.94,12.92]
[1722038719382,45.0,182.98,182.94,12.92]
[1722038719880,12.92,182.96,182.82,21.5019]
[1722038720081,65.5,182.95,182.89,12.92]
[1722038720488,83.886,182.95,182.88,12.92]
[1722038721804,5.4663,182.94,182.88,12.92]
[1722038721982,5.4669,182.92,182.82,21.5019]
[1722038722188,20.5,182.91,182.87,12.92]
[1722038723087,25.9671,182.91,182.82,21.5019]
[1722038723303,50.4677,182.9,182.79,51.68]
[1722038723482,20.5,182.89,182.79,51.68]
[1722038723684,20.5,182.89,182.85,12.92]
[1722038725196,20.5,182.89,182.84,12.92]
[1722038727901,20.5,182.89,182.77,21.7343]
[1722038728208,5.4684,182.87,182.77,21.7343]
[1722038728403,25.9678,182.89,182.83,12.92]
[1722038728707,45.0,182.88,182.83,12.92]
[1722038729088,20.0,182.87,182.83,12.92]
[1722038732893,20.0,182.87,182.85,12.92]
[1722038733091,20.0,182.91,182.85,12.92]
[1722038733298,45.0,182.9,182.85,12.92]
[1722038733497,20.5,182.89,182.85,12.92]
[1722038733708,20.0,182.89,182.83,12.92]
[1722038733902,45.0,182.88,182.83,12.92]
[1722038734313,20.0,182.87,182.84,12.92]
[1722038734709,20.0,182.87,182.83,12.92]
[1722038735520,20.0,182.87,182.84,12.92]
[1722038735895,28.57995334,182.87,182.84,12.92]
[1722038736598,28.57995334,182.87,182.85,12.92]
[1722038736797,8.57995334,182.87,182.86,12.92]
[1722038737397,5.4669,182.92,182.86,12.92]
[1722038737610,8.57964903,182.88,182.86,12.92]
[1722038738019,5.4669,182.92,182.86,12.92]
[1722038738198,8.57922683,182.9,182.88,12.92]
[1722038738406,8.57922683,182.9,182.87,12.92]
[1722038741895,8.57922683,182.9,182.79,51.68]
[1722038742099,8.57922683,182.9,182.86,12.92]
[1722038743020,9.07922683,182.9,182.86,12.92]
[1722038743423,9.07922683,182.9,182.78,0.17]
[1722038743602,0.5,182.89,182.84,12.92]
[1722038746327,20.5,182.89,182.84,12.92]
[1722038746519,20.5,182.89,182.79,51.68]
[1722038746824,45.0,182.88,182.83,12.92]
[1722038747025,20.0,182.87,182.83,12.92]
[1722038747225,20.5,182.87,182.83,12.92]
[1722038749127,20.0,182.87,182.83,12.92]
[1722038749705,20.0,182.87,182.84,12.92]
[1722038750119,20.0,182.87,182.79,51.68]
[1722038750319,20.0,182.87,182.83,12.92]
[1722038752212,8.57922683,182.9,182.85,12.92]
[1722038752528,8.57922683,182.9,182.87,12.92]
[1722038753729,20.0,182.89,182.86,12.92]
[1722038755128,8.57922683,182.9,182.87,12.92]
[1722038755331,8.57922683,182.9,182.88,12.92]
[1722038757633,8.57922683,182.9,182.87,12.92]
[1722038761338,8.57922683,182.9,182.88,12.92]
[1722038769825,8.57922683,182.9,182.79,2.26650884]
[1722038770027,8.57922683,182.9,182.86,12.92]
[1722038770226,9.07922683,182.9,182.86,12.92]
[1722038771140,8.57922683,182.9,182.87,12.92]
[1722038778449,8.57922683,182.9,182.85,12.92]
[1722038778744,8.57922683,182.9,182.83,12.92]
[1722038778745,20.5,182.89,182.83,12.92]
[1722038778939,65.5,182.89,182.83,12.92]
[1722038780546,65.0,182.89,182.86,12.92]
[1722038781139,20.0,182.89,182.86,12.92]
[1722038781854,20.5,182.89,182.85,12.92]
[1722038782038,45.0,182.88,182.84,12.92]
[1722038782238,0.5,182.87,182.84,12.92]
[1722038782437,0.5,182.87,182.77,23.92662698]
[1722038782636,0.5,182.87,182.82,12.92]
[1722038783629,45.0,182.88,182.77,23.92662698]
[1722038783835,20.0,182.89,182.85,12.92]
[1722038784340,6.6051,182.91,182.86,12.92]
[1722038784531,6.6051,182.91,182.87,12.92]
[1722038784727,16.6315,182.93,182.87,12.92]
[1722038785529,20.0,182.92,182.87,12.92]
[1722038785859,16.6315,182.93,182.8,1.09368638]
[1722038785860,16.6315,182.93,182.91,12.92]
[1722038786039,6.6051,182.95,182.91,12.92]
[1722038786431,15.4629,182.97,182.91,12.92]
[1722038786750,15.4629,182.97,182.84,16.2293]
[1722038786751,15.4629,182.97,182.93,12.92]
[1722038786953,15.4629,182.97,182.88,12.92]
[1722038786954,15.4629,182.97,182.94,12.92]
[1722038787138,8.57856397,182.99,182.96,12.92]
[1722038787339,8.57856397,182.99,182.98,12.92]
[1722038787645,8.57856397,182.99,182.96,12.92]
[1722038788053,8.57856397,182.99,182.98,12.92]
[1722038788253,15.9629,183.07,182.98,12.92]
[1722038788448,6.6051,183.08,183.04,12.92]
[1722038788637,8.57364266,183.08,183.04,12.92]
[1722038788837,8.57364266,183.08,183.06,12.92]
[1722038789033,15.4629,183.11,183.07,12.92]
[1722038789441,24.03374247,183.11,183.07,12.92]
[1722038789665,8.57084247,183.11,183.07,12.92]
[1722038790162,8.57084247,183.11,183.08,12.92]
[1722038790345,0.5,183.14,183.09,12.92]
[1722038790545,15.4629,183.15,183.1,12.92]
[1722038790739,15.4629,183.15,183.11,12.92]
[1722038791060,15.4629,183.15,183.09,12.92]
[1722038791368,13.42,183.14,183.07,12.92]
[1722038791864,20.0,183.13,183.07,12.92]
[1722038792047,45.0,183.12,183.07,12.92]
[1722038792769,20.5,183.11,182.99,6.4694]
[1722038792964,45.5,183.1,183.04,12.92]
[1722038793159,45.5,183.1,182.99,6.4694]
[1722038793160,45.5,183.1,183.05,12.92]
[1722038793340,20.0,183.11,183.06,12.92]
[1722038793545,20.5,183.12,183.07,12.92]
[1722038793746,20.0,183.11,183.07,12.92]
[1722038794159,0.5,183.12,183.07,12.92]
[1722038794366,45.0,183.12,183.07,12.92]
[1722038794565,20.0,183.11,183.07,12.92]
[1722038795349,20.0,183.11,182.99,7.56187793]
[1722038795350,20.0,183.11,183.06,12.92]
[1722038795561,45.5,183.1,183.06,12.92]
[1722038795759,45.5,183.1,183.05,12.92]
[1722038796068,12.92,183.09,182.95,6.1716]
[1722038796280,45.0,183.08,183.03,12.92]
[1722038796763,20.0,183.07,183.03,12.92]
[1722038797147,20.5,183.07,183.03,12.92]
[1722038798241,20.0,183.07,183.03,12.92]
[1722038798442,0.5,183.07,183.03,12.92]
[1722038798667,0.5,183.07,183.02,12.92]
[1722038798866,20.5,183.07,183.02,12.92]
[1722038800558,45.0,183.08,183.04,12.92]
[1722038800862,45.0,183.09,183.05,12.92]
[1722038801050,20.0,183.08,183.05,12.92]
[1722038801854,20.5,183.08,183.05,12.92]
[1722038802052,45.0,183.09,183.05,12.92]
[1722038802259,45.0,183.09,183.06,12.92]
[1722038802463,0.5,183.11,183.06,12.92]
[1722038803160,0.5,183.1,183.03,12.92]
[1722038803364,45.5,183.1,183.03,12.92]
[1722038803745,20.0,183.09,183.03,12.92]
[1722038803965,45.5,183.08,183.03,12.92]
[1722038804164,0.5,183.07,183.03,12.92]
[1722038804967,45.0,183.08,183.04,12.92]
[1722038805172,45.0,183.08,183.05,12.92]
[1722038807053,45.0,183.08,182.97,51.68]
[1722038807054,45.0,183.08,183.04,12.92]
[1722038807251,0.5,183.07,183.01,12.92]
[1722038807563,0.5,183.07,182.98,12.92]
[1722038807564,12.92,183.05,182.98,12.92]
[1722038807756,65.5,183.04,182.98,12.92]
[1722038809051,65.5,183.04,182.99,12.92]
[1722038810661,65.5,183.04,182.98,12.92]
[1722038813149,12.92,183.03,182.91,6.1716]
[1722038813351,12.92,183.01,182.94,12.92]
[1722038813563,13.42,183.0,182.93,12.92]
[1722038813758,65.0,182.99,182.93,12.92]
[1722038813974,65.0,182.99,182.94,12.92]
[1722038814353,0.5,182.98,182.9,15.7154]
[1722038814552,16.9922,182.98,182.91,12.92]
[1722038814780,65.0,182.97,182.91,12.92]
[1722038814949,0.5,182.96,182.91,12.92]
[1722038819171,0.5,182.95,182.9,12.92]
[1722038819363,20.5,182.95,182.89,12.92]
[1722038819679,45.0,182.94,182.89,12.92]
[1722038819857,0.5,182.93,182.89,12.92]
[1722038820260,20.0,182.95,182.92,12.92]
[1722038820783,20.5,182.97,182.92,12.92]
[1722038820954,45.0,182.96,182.92,12.92]
[1722038821153,20.5,182.95,182.92,12.92]
[1722038821358,20.5,182.95,182.91,12.92]
[1722038822366,45.5,182.94,182.89,12.92]
[1722038822582,13.42,182.94,182.82,6.1716]
[1722038822881,65.0,182.93,182.87,12.92]
[1722038823184,0.5,182.92,182.87,12.92]
[1722038823385,0.5,182.92,182.88,12.92]
[1722038823588,65.0,182.93,182.88,12.92]
[1722038823765,65.5,182.93,182.89,12.92]
[1722038824095,65.5,182.93,182.81,16.191]
[1722038824259,0.5,182.92,182.87,12.92]
[1722038824678,0.5,182.92,182.81,16.191]
[1722038824882,0.5,182.92,182.87,12.92]
[1722038825094,65.0,182.93,182.87,12.92]
[1722038825886,16.3871,182.91,182.85,12.92]
[1722038826067,65.5,182.9,182.85,12.92]
[1722038826269,0.5,182.89,182.85,12.92]
[1722038829575,0.5,182.89,182.86,12.92]
[1722038830079,65.0,182.9,182.86,12.92]
[1722038831201,65.5,182.9,182.86,12.92]
[1722038832087,65.5,182.9,182.79,51.68]
[1722038832387,65.5,182.9,182.86,12.92]
[1722038832568,65.0,182.9,182.86,12.92]
[1722038833670,65.0,182.9,182.85,12.92]
[1722038833985,65.0,182.9,182.86,12.92]
[1722038834988,65.5,182.9,182.86,12.92]
[1722038836284,65.0,182.9,182.86,12.92]
[1722038836687,0.5,182.89,182.85,12.92]
[1722038838267,65.0,182.9,182.87,12.92]
[1722038839385,65.5,182.9,182.87,12.92]
[1722038839702,65.5,182.9,182.86,12.92]
[1722038846712,0.5,182.89,182.78,6.5482]
[1722038847002,0.5,182.89,182.73,282.7481]
[1722038847003,5.4689,182.85,182.73,282.7481]
[1722038847181,0.5,182.84,182.79,12.92]
[1722038847876,65.5,182.85,182.79,12.92]
[1722038848093,65.5,182.85,182.73,22.4481]
[1722038848296,65.5,182.85,182.8,12.92]
[1722038848899,65.0,182.85,182.8,12.92]
[1722038849095,65.5,182.85,182.8,12.92]
[1722038850812,20.0,182.85,182.81,12.92]
[1722038850993,0.5,182.85,182.82,12.92]
[1722038851191,20.0,182.85,182.82,12.92]
[1722038851390,20.0,182.85,182.83,12.92]
[1722038851703,20.0,182.85,182.82,12.92]
[1722038852011,9.08090362,182.86,182.82,12.92]
[1722038852316,22.4099,182.91,182.85,12.92]
[1722038852605,24.96703171,182.91,182.87,12.92]
[1722038853800,45.0,182.9,182.87,12.92]
[1722038854507,24.96703171,182.91,182.87,12.92]
[1722038854896,20.0,182.9,182.87,12.92]
[1722038856403,0.5,182.89,182.85,12.92]
[1722038856705,45.5,182.89,182.85,12.92]
[1722038857207,45.5,182.89,182.84,12.92]
[1722038857796,20.0,182.88,182.77,6.5769]
[1722038858110,45.5,182.87,182.82,12.92]
[1722038858316,45.0,182.87,182.83,12.92]
[1722038860823,45.0,182.87,182.82,12.92]
[1722038861193,5.4686,182.86,182.76,16.6010371]
[1722038861390,45.0,182.85,182.8,12.92]
[1722038861701,45.0,182.85,182.81,12.92]
[1722038862092,45.0,182.85,182.82,12.92]
[1722038864620,45.0,182.86,182.82,12.92]
[1722038864814,20.0,182.85,182.82,12.92]
[1722038865609,20.0,182.85,182.76,17.69504957]
[1722038865800,20.0,182.85,182.82,12.92]
[1722038868430,20.0,182.85,182.81,12.92]
[1722038868933,20.0,182.85,182.76,16.6010371]
[1722038869131,45.0,182.84,182.8,12.92]
[1722038876929,20.0,182.85,182.81,12.92]
[1722038877129,20.0,182.86,182.82,12.92]
[1722038877315,20.5,182.87,182.82,12.92]
[1722038878713,45.0,182.86,182.81,12.92]
[1722038878914,20.0,182.85,182.81,12.92]
[1722038879440,20.5,182.85,182.81,12.92]
[1722038879620,20.5,182.85,182.8,12.92]
[1722038883328,20.0,182.85,182.82,12.92]
[1722038883514,25.46703171,182.91,182.84,12.92]
[1722038883720,24.96703171,182.91,182.85,12.92]
[1722038883923,25.46703171,182.91,182.86,12.92]
[1722038884229,38.38703171,182.91,182.79,6.6193]
[1722038884533,12.92,182.9,182.83,12.92]
[1722038884730,25.46703171,182.91,182.84,12.92]
[1722038885307,20.0,182.9,182.85,12.92]
[1722038885621,0.5,182.89,182.79,58.2993]
[1722038886831,45.5,182.89,182.79,58.2993]
[1722038887015,45.0,182.89,182.79,58.2993]
[1722038889836,20.0,182.9,182.85,12.92]
[1722038890531,20.0,182.9,182.86,12.92]
[1722038892234,45.5,182.89,182.84,12.92]
[1722038894437,20.0,182.9,182.86,12.92]
[1722038894641,20.0,182.9,182.87,12.92]
[1722038895427,0.5,182.89,182.87,12.92]
[1722038895638,0.5,182.89,182.86,12.92]
[1722038895839,20.0,182.9,182.86,12.92]
[1722038896337,0.5,182.89,182.86,12.92]
[1722038896535,20.0,182.9,182.86,12.92]
[1722038896729,20.0,182.9,182.79,58.2993]
[1722038896939,45.0,182.89,182.84,12.92]
[1722038897120,0.5,182.88,182.84,12.92]
[1722038897549,20.0,182.9,182.86,12.92]
[1722038898337,24.96703171,182.91,182.88,12.92]
[1722038898934,8.57993171,182.91,182.88,12.92]
[1722038899256,15.9585,182.95,182.89,12.92]
[1722038899435,53.57877864,182.94,182.89,12.92]
[1722038899632,8.57877864,182.94,182.9,12.92]
[1722038900035,8.57877864,182.94,182.83,17.36520055]
[1722038900036,15.9585,182.99,182.93,12.92]
[1722038900347,15.9585,182.99,182.88,12.92]
[1722038900348,25.03352744,182.99,182.94,12.92]
[1722038900723,0.5,182.98,182.88,51.68]
[1722038900932,12.92,182.96,182.83,16.2717]
[1722038901126,13.42,182.95,182.88,12.92]
[1722038901328,25.4664,182.94,182.88,12.92]
[1722038901550,5.9665,182.93,182.88,12.92]
[1722038901762,0.5,182.93,182.87,12.92]
[1722038902263,45.5,182.93,182.87,12.92]
[1722038902432,0.5,182.92,182.87,12.92]
[1722038904644,20.5,182.92,182.87,12.92]
[1722038904846,45.0,182.91,182.87,12.92]
[1722038906863,20.0,182.92,182.88,12.92]
[1722038907064,20.0,182.94,182.88,12.92]
[1722038907234,45.0,182.93,182.88,12.92]
[1722038907436,20.0,182.92,182.88,12.92]
[1722038908558,20.0,182.92,182.9,12.92]
[1722038908764,20.0,182.96,182.9,12.92]
[1722038909249,20.5,182.96,182.9,12.92]
[1722038909450,0.5,182.95,182.9,12.92]
[1722038909843,45.5,182.95,182.9,12.92]
[1722038910053,20.0,182.94,182.9,12.92]
[1722038910366,20.0,182.94,182.89,12.92]
[1722038916162,20.0,182.94,182.9,12.92]
[1722038917954,20.0,182.94,182.91,12.92]
[1722038919054,20.5,182.96,182.91,12.92]
[1722038919367,20.0,182.96,182.91,12.92]
[1722038919557,20.0,182.96,182.92,12.92]
[1722038920063,24.53352744,182.99,182.95,12.92]
[1722038920240,24.53352744,182.99,182.96,12.92]
[1722038920642,15.9585,182.99,182.97,12.92]
[1722038922649,14.0394101,183.02,182.97,12.92]
[1722038922857,65.0,183.01,182.97,12.92]
[1722038924451,65.5,183.01,182.97,12.92]
[1722038925548,65.0,183.01,182.97,12.92]
[1722038926342,65.5,183.01,182.97,12.92]
[1722038927242,65.5,183.01,182.96,12.92]
[1722038927444,12.92,183.0,182.89,6.0072]
[1722038927649,50.9648,182.99,182.93,12.92]
[1722038927947,0.5,182.98,182.93,12.92]
[1722038928255,45.5,182.99,182.93,12.92]
[1722038928458,45.5,182.99,182.89,6.0072]
[1722038928459,45.0,182.99,182.94,12.92]
[1722038928645,0.5,182.99,182.94,12.92]
[1722038931076,0.5,182.99,182.89,6.0072]
[1722038931255,5.9651,182.98,182.91,12.92]
[1722038931565,65.0,182.97,182.91,12.92]
[1722038931750,0.5,182.96,182.91,12.92]
[1722038933284,65.0,182.97,182.93,12.92]
[1722038934682,65.0,182.97,182.92,12.92]
[1722038934862,0.5,182.96,182.92,12.92]
[1722038935453,0.5,182.96,182.9,12.92]
[1722038935770,0.5,182.95,182.89,12.92]
[1722038936084,65.5,182.95,182.9,12.92]
[1722038938773,103.886,182.95,182.8,24.14534592]
[1722038938963,78.42,182.95,182.88,12.92]
[1722038939173,65.0,182.95,182.9,12.92]
[1722038939581,65.0,182.95,182.91,12.92]
[1722038941891,70.966,182.95,182.8,24.14534592]
[1722038942111,70.966,182.95,182.8,21.886]
[1722038942112,12.92,182.93,182.8,21.886]
[1722038942266,12.92,182.9,182.8,21.886]
[1722038942469,20.5,182.89,182.8,21.886]
[1722038942773,45.0,182.88,182.83,12.92]
[1722038942996,0.5,182.87,182.83,12.92]
[1722038943200,0.5,182.87,182.79,51.68]
[1722038943381,0.5,182.87,182.83,12.92]
[1722038943870,0.5,182.87,182.76,22.6777371]
[1722038944069,20.5,182.87,182.76,22.6777371]
[1722038944272,45.0,182.86,182.81,12.92]
[1722038944506,36.2925,182.85,182.79,12.92]
[1722038944704,45.0,182.84,182.79,12.92]
[1722038944875,0.5,182.83,182.79,12.92]
[1722038946301,0.5,182.83,182.76,0.7917371]
[1722038946503,0.5,182.82,182.78,12.92]
[1722038946701,45.0,182.82,182.78,12.92]
[1722038952803,0.5,182.84,182.8,12.92]
[1722038953002,65.5,182.84,182.8,12.92]
[1722038953320,65.0,182.84,182.8,12.92]
[1722038954396,0.5,182.83,182.76,0.7917371]
[1722038954607,0.5,182.83,182.79,12.92]
[1722038954919,0.5,182.83,182.78,12.92]
[1722038957014,0.5,182.83,182.76,0.7917371]
[1722038957227,0.5,182.82,182.78,12.92]
[1722038957513,77.92,182.84,182.78,12.92]
[1722038957702,65.0,182.84,182.78,12.92]
[1722038958017,65.0,182.84,182.76,0.7917371]
[1722038958220,65.0,182.84,182.79,12.92]
[1722038958598,65.5,182.84,182.79,12.92]
[1722038960609,65.0,182.84,182.79,12.92]
[1722038962015,15.5108,182.89,182.83,12.92]
[1722038962223,15.5108,182.89,182.84,12.92]
[1722038962514,16.0108,182.89,182.79,12.92]
[1722038962707,16.0108,182.89,182.83,12.92]
[1722038963522,45.0,182.88,182.83,12.92]
[1722038963711,0.5,182.87,182.82,12.92]
[1722038964228,20.5,182.87,182.81,12.92]
[1722038964518,45.0,182.86,182.8,12.92]
[1722038964712,0.5,182.85,182.8,12.92]
[1722038965210,45.0,182.86,182.8,12.92]
[1722038965515,45.5,182.86,182.8,12.92]
[1722038965698,45.0,182.86,182.8,12.92]
[1722038966017,45.0,182.86,182.82,12.92]
[1722038966207,45.0,182.86,182.83,12.92]
[1722038969024,45.0,182.86,182.82,12.92]
[1722038970531,20.0,182.87,182.83,12.92]
[1722038970699,20.0,182.88,182.83,12.92]
[1722038970896,45.0,182.87,182.83,12.92]
[1722038972427,45.5,182.87,182.82,12.92]
[1722038972606,45.5,182.87,182.81,12.92]
[1722038972809,20.0,182.86,182.81,12.92]
[1722038973124,45.5,182.85,182.81,12.92]
[1722038974223,45.5,182.85,182.77,15.504]
[1722038974523,45.5,182.85,182.8,12.92]
[1722038974724,45.5,182.85,182.81,12.92]
[1722038975820,38.3893,182.84,182.76,0.7917371]
[1722038976029,0.5,182.83,182.77,12.92]
[1722038976222,0.5,182.82,182.77,12.92]
[1722038978424,45.5,182.83,182.79,12.92]
[1722038978618,0.5,182.82,182.79,12.92]
[1722038979929,0.5,182.82,182.78,12.92]
[1722038980230,45.0,182.83,182.79,12.92]
[1722038981020,45.0,182.83,182.76,0.7917371]
[1722038981226,45.0,182.83,182.79,12.92]
[1722038983434,29.08194132,182.84,182.79,12.92]
[1722038983733,28.58194132,182.84,182.79,12.92]
[1722038983916,28.58194132,182.84,182.81,12.92]
[1722038985615,12.92,182.88,182.82,12.92]
[1722038985815,45.0,182.87,182.82,12.92]
[1722038986035,8.58129288,182.86,182.82,12.92]
[1722038986219,8.58129288,182.86,182.83,12.92]
[1722038990834,8.58129288,182.86,182.76,0.7917371]
[1722038991028,8.58129288,182.86,182.81,12.92]
[1722038991417,45.0,182.85,182.8,12.92]
[1722038991942,45.5,182.85,182.8,12.92]
[1722038993237,8.58129288,182.86,182.82,12.92]
[1722038993441,8.58129288,182.86,182.83,12.92]
[1722038998636,8.58129288,182.86,182.76,0.7917371]
[1722038998831,8.58129288,182.86,182.82,12.92]
[1722039004466,0.5,182.85,182.81,12.92]
[1722039004651,45.5,182.85,182.76,0.7917371]
[1722039004956,20.0,182.84,182.79,12.92]
[1722039005145,0.5,182.83,182.79,12.92]
[1722039005756,45.5,182.83,182.79,12.92]
[1722039008230,20.0,182.84,182.8,12.92]
[1722039008425,20.0,182.85,182.81,12.92]
[1722039008635,0.5,182.86,182.81,12.92]
[1722039009631,45.5,182.86,182.81,12.92]
[1722039009854,20.0,182.85,182.81,12.92]
[1722039013062,20.0,182.85,182.76,0.7917371]
[1722039013246,45.5,182.84,182.76,0.7917371]
[1722039013559,45.5,182.84,182.79,12.92]
[1722039013934,45.0,182.84,182.79,12.92]
[1722039015059,45.5,182.84,182.8,12.92]
[1722039015267,20.5,182.85,182.8,12.92]
[1722039016170,20.0,182.85,182.8,12.92]
[1722039016862,45.0,182.84,182.76,0.7917371]
[1722039017059,45.0,182.84,182.8,12.92]
[1722039017562,45.5,182.84,182.78,12.92]
[1722039017772,20.0,182.83,182.78,12.92]